{"text_format":"1","workbook":"xlsx","n_sheets":3,"sheets":["DAM-tabell 2024","B-Side 2024","Slutspel"],"not_rendered":{"charts":0,"images":0,"macros":1,"external_links":0,"defined_names":0,"comments":0,"pivot_tables":0},"unopened":[],"bounds":{"document_bytes":16777216,"sheet_cells":100000,"rows_first":2000,"rows_last":500,"rows_between":2000,"halvings":0,"cell_chars":16384,"cell_head_chars":4096},"cells_cut":0,"cells_raw":0,"read":"whole","date_system":"1900"}

{"sheet":"DAM-tabell 2024","index":0,"n_rows":36,"n_cols":31,"rows_kept":36,"cut":false,"hidden":false,"merged":[[35,3,41,14],[22,0,22,13],[22,16,22,29],[23,3,23,16],[25,3,25,13],[26,3,32,14],[34,3,34,13],[13,10,13,12],[13,26,13,28],[0,0,0,30],[2,1,2,12],[2,17,2,28],[3,1,3,9],[3,10,3,12],[3,17,3,25],[3,26,3,28],[10,6,10,9],[12,1,12,12],[12,17,12,28],[11,0,11,30],[10,22,10,25]]}
["Damtabellen 2024"]
[]
["VIT","Uppdaterad 2024-04-26",null,null,null,null,null,null,null,null,null,null,null,"VIT",2024,null,"ROSA","Uppdaterad 2024-05-14",null,null,null,null,null,null,null,null,null,null,null,"ROSA",2024]
["Placering","Namn",null,null,null,null,null,null,null,null,null,null,null,"Poäng","Totplac.",null,"Placering","Namn",null,null,null,null,null,null,null,null,null,null,null,"Poäng","Totplac."]
[1,"Eva-Karin",null,null,null,null,null,null,null,null,null,1,null,4.2,null,null,1,"Eva",null,null,null,null,null,null,null,null,null,2,null,7.5]
[2,"Karen",null,null,null,null,null,null,null,null,null,1,null,3.6,null,null,2,"Tua",null,null,null,null,null,null,null,null,null,2,null,6.3]
[3,"Nettan O",null,null,null,null,null,null,null,null,null,1,null,3.2,null,null,3,"Marika",null,null,null,null,null,null,null,null,null,1,null,2.4]
[4,"Tina",null,null,null,null,null,null,null,null,null,1,null,2.5,null,null,4,"Marita",null,null,null,null,null,null,null,null,null,2,null,1.6]
[5,"BowNettan",null,null,null,null,null,null,null,null,null,1,null,0,null,null,5,"Sissi",null,null,null,null,null,null,null,null,null,1,null,0.8]
[6,"Kiran",null,null,null,null,null,null,null,null,null,1,null,0,null,null,6,"Christina",null,null,null,null,null,null,null,null,null,2,null,0.4]
[null,null,null,null,null,null,"Summa:  ",null,null,null,null,{"$f":"SUM(L5:L10)","v":6},null,{"$f":"SUM(N5:N10)","v":13.5},null,null,null,null,null,null,null,null,null,null,"Summa:  ",null,null,{"$f":"SUM(AB5:AB10)","v":10},null,{"$f":"SUM(AD5:AD10)","v":19}]
[]
["VIT","Omgångar (3 singelmatcher släpar, ej parmatch)",null,null,null,null,null,null,null,null,null,null,null,"VIT",null,null,"ROSA","Omgångar (1 singelmatch släpar, ej parmatch)",null,null,null,null,null,null,null,null,null,null,null,"ROSA"]
["Omgång",1,2,3,4,5,6,7,8,9,"Slutspel",null,null,"Totalt",null,null,"Omgång",1,2,3,4,5,6,7,8,9,"Slutspel",null,null,"Totalt"]
["BowNettan",0,null,null,null,null,null,null,null,null,null,null,null,{"$f":"SUM(B15:J15)","v":0},null,null,"Christina",0.4,0,null,null,null,null,null,null,null,null,null,null,{"$f":"SUM(R15:Z15)","v":0.4}]
["Eva-Karin",1.2,null,null,null,3,null,null,null,null,null,null,null,4.2,null,null,"Eva",4,3.5,null,null,null,null,null,null,null,null,null,null,7.5]
["Karen",3.6,null,null,null,null,null,null,null,null,null,null,null,3.6,null,null,"Marika",2.4,null,null,null,null,null,null,null,null,null,null,null,2.4]
["Kiran",0,null,null,null,null,null,null,null,null,null,null,null,0,null,null,"Marita",1.6,0,null,null,null,null,null,null,null,null,null,null,1.6]
["Nettan O",3.2,null,null,null,null,null,null,null,null,null,null,null,3.2,null,null,"Sissi",0.8,null,null,null,null,null,null,null,null,null,null,null,0.8]
["Tina",2,null,null,null,0.5,null,null,null,null,null,null,null,2.5,null,null,"Tua",2.8,3.5,null,null,null,null,null,null,null,null,null,null,6.3]
[null,{"$f":"SUM(B15:B20)","v":10},0,0,0,3.5,0,0,0,0,null,null,null,{"$f":"SUM(N15:N20)","v":13.5},null,null,null,{"$f":"SUM(R15:R20)","v":12},7,0,0,0,0,0,0,0,null,null,null,{"$f":"SUM(AD15:AD20)","v":19}]
["Omgång klar","Ja","Nej","Nej","Nej","Nej","Nej","Nej","Nej","Nej",null,null,null,null,null,null,"Omgång klar","Ja","Nej","Nej","Nej","Nej","Nej","Nej","Nej","Nej"]
[]
[null,null,"=","Gemensam omgång (Slagspel eller Poängbogey). De två bästa av tre räknas (markerat gult)"]
[]
[null,null,"=","Parspel (en sista) Ej aktuellt 2023"]
[null,null,null,"Regler parspel: Fyrboll bästboll matchspel (lagspel två och två. Varje lag väljer bästa resultatet per hål. I övrigt som Matchspel. Det lag vinner, som har fler hål upp än vad det är kvar att spela). Man spelar på sitt egna hcp och sin egen boll. 2p per spelare för det vinnande laget, 1p per spelare vid delad match. 0,5p per spelare för det lag som har bästa resultat på senast vunna hål efter 18 spelade hål."]
[]
[]
[]
[]
[]
[]
[]
[null,null,"=","Mixmatch (Irish greensome, två sistor)"]
[null,null,null,"Mixregler: Irish greensome, matchspel (spel två och två. Båda spelarna slår ut från varje tee. Skillnaden är att på alla par 4 och par 5 hål slås ett slag till på partnerns boll innan man väljer vilken boll man ska spela vidare på. Spelet fortsätter sedan som Foursome). Lägg ihop era slopeslag och dela med två. Blir det ojämnt avrunda neråt. Skillnaden mellan lagen i slopehcp är de hål ena laget har ett slag extra. Vinnarna hål 1-9 får per spelare 1p, sistan 0,2p. Vinnarna hål 10-18 får per spelare 1p, sistan 0,3p. Lika resultat ger 0,5p var."]

{"sheet":"B-Side 2024","index":1,"n_rows":1,"n_cols":1,"rows_kept":1,"cut":false,"hidden":false,"merged":[[10,6,10,9],[10,22,10,25],[11,0,11,30],[0,0,0,30],[2,1,2,12],[2,17,2,28],[3,1,3,9],[3,10,3,12],[3,17,3,25],[3,26,3,28]]}
["Damtabellen 2024"]

{"sheet":"Slutspel","index":2,"n_rows":30,"n_cols":47,"rows_kept":30,"cut":false,"hidden":false,"merged":[[22,13,22,20],[23,13,23,20],[13,0,13,22],[14,1,14,8],[15,1,15,8],[22,1,22,8],[23,1,23,8],[14,13,14,20],[0,0,0,34],[2,1,2,8],[2,13,2,20],[3,1,3,8],[3,13,3,20],[16,27,16,28],[15,27,15,28],[14,25,14,34],[15,31,15,32],[15,13,15,20],[17,31,17,32],[15,29,15,30],[16,29,16,30],[17,29,17,30],[26,27,26,28],[27,25,27,26],[27,27,27,28],[27,31,27,32],[27,29,27,30],[26,25,26,26],[26,29,26,30],[26,31,26,32],[18,27,18,28],[25,27,25,28],[23,25,23,26],[23,27,23,28],[18,31,18,32],[19,31,19,32],[19,27,19,28],[19,25,19,26],[19,29,19,30],[18,25,18,26],[18,29,18,30],[22,25,22,34],[25,29,25,30],[25,31,25,32],[24,25,24,26],[24,27,24,28],[24,29,24,30],[24,31,24,32],[23,29,23,30],[23,31,23,32],[25,25,25,26],[13,25,13,34],[14,36,14,46],[15,36,15,37],[15,38,15,39],[15,40,15,41],[13,36,13,46],[18,36,18,37],[18,38,18,39],[18,40,18,41],[18,42,18,43],[17,36,17,37],[17,38,17,39],[17,40,17,41],[17,42,17,43],[15,25,15,26],[16,25,16,26],[17,27,17,28],[17,25,17,26],[16,31,16,32],[21,36,21,37],[21,38,21,39],[21,40,21,41],[21,42,21,43],[22,36,22,37],[22,38,22,39],[22,40,22,41],[22,42,22,43],[16,36,16,37],[16,38,16,39],[16,40,16,41],[16,42,16,43],[20,36,20,37],[20,38,20,39],[20,40,20,41],[20,42,20,43],[19,36,19,37],[19,38,19,39],[19,40,19,41],[19,42,19,43],[27,36,27,37],[23,42,23,43],[23,40,23,41],[23,38,23,39],[23,36,23,37],[24,42,24,43],[24,40,24,41],[24,38,24,39],[24,36,24,37],[25,42,25,43],[25,40,25,41],[25,38,25,39],[25,36,25,37],[26,42,26,43],[26,40,26,41],[26,38,26,39],[26,36,26,37],[28,42,28,43],[29,42,29,43],[15,42,15,43],[28,38,28,39],[29,38,29,39],[28,40,28,41],[29,40,29,41],[27,42,27,43],[27,40,27,41],[27,38,27,39]]}
["Damtabellen 2024 - Slutställning/Slutspel"]
[]
["VIT","Uppdaterad 2024-04-26",null,null,null,null,null,null,null,"VIT",2024,null,"ROSA","Uppdaterad 2024-04-26",null,null,null,null,null,null,null,"ROSA",2024]
["Plac.","Namn",null,null,null,null,null,null,null,"Poäng","Totplac.",null,"Plac.","Namn",null,null,null,null,null,null,null,"Poäng","Totplac."]
[1,null,null,null,null,null,null,null,null,null,null,null,1]
[2,null,null,null,null,null,null,null,null,null,null,null,2]
[3,null,null,null,null,null,null,null,null,null,null,null,3]
[4,null,null,null,null,null,null,null,null,null,null,null,4]
[5,null,null,null,null,null,null,null,null,null,null,null,5]
[6,null,null,null,null,null,null,null,null,null,null,null,6]
[7,null,null,null,null,null,null,null,null,null,null,null,7]
["Summa: ",null,null,null,null,null,null,null,null,null,null,null,"Summa: "]
[]
["SLUTSPELSGRUPPER 2024",null,null,null,null,null,null,null,null,null,null,null,null,null,null,null,null,null,null,null,null,null,null,null,null,"SLUTSPEL 2024",null,null,null,null,null,null,null,null,null,null,"SLUTSPEL 2024"]
[1,"Grupp 1",null,null,null,null,null,null,null,1,2024,null,2,"Grupp 2",null,null,null,null,null,null,null,2,2024,null,null,"BOLLAR - FREDAG",null,null,null,null,null,null,null,null,null,null,"STÄLLNING"]
[null,"Namn",null,null,null,null,null,null,null,null,"Totplac.",null,null,"Namn",null,null,null,null,null,null,null,null,"Totplac.",null,null,"BOLL 1",null,"BOLL 2",null,"BOLL 3",null,"BOLL 4",null,"BOLL 5","Grupp",null,"Namn",null,"Fredag",null,"Namn",null,"Lördag",null,"Namn","Totalt"]
[1,"?",null,null,null,null,null,null,null,null,1,null,1,"?",null,null,null,null,null,null,null,null,6,null,null,"?",null,"?",null,"?",null,"?",null,"?",4,null,null,null,null,null,null,null,null,null,null,null,1]
[2,"?",null,null,null,null,null,null,null,null,2,null,2,"?",null,null,null,null,null,null,null,null,7,null,null,"?",null,"?",null,"?",null,"?",null,"?",3,null,null,null,null,null,null,null,null,null,null,null,2]
[3,"?",null,null,null,null,null,null,null,null,3,null,3,"?",null,null,null,null,null,null,null,null,8,null,null,"?",null,"?",null,"?",null,"?",null,"?",2,null,null,null,null,null,null,null,null,null,null,null,3]
[4,"?",null,null,null,null,null,null,null,null,4,null,4,"?",null,null,null,null,null,null,null,null,9,null,null,"?",null,"?",null,"?",null,"?",null,"?",1,null,null,null,null,null,null,null,null,null,null,null,4]
[5,"?",null,null,null,null,null,null,null,null,5,null,5,"?",null,null,null,null,null,null,null,null,10,null,null,null,null,null,null,null,null,null,null,null,null,null,null,null,null,null,null,null,null,null,null,null,5]
[null,null,null,null,null,null,null,null,null,null,null,null,null,null,null,null,null,null,null,null,null,null,null,null,null,null,null,null,null,null,null,null,null,null,null,null,null,null,null,null,null,null,null,null,null,null,6]
[3,"Grupp 3",null,null,null,null,null,null,null,3,2024,null,4,"Grupp 4",null,null,null,null,null,null,null,4,2024,null,null,"BOLLAR - LÖRDAG",null,null,null,null,null,null,null,null,null,null,null,null,null,null,null,null,null,null,null,null,7]
[null,"Namn",null,null,null,null,null,null,null,null,"Totplac.",null,null,"Namn",null,null,null,null,null,null,null,null,"Totplac.",null,null,"BOLL 1",null,"BOLL 2",null,"BOLL 3",null,"BOLL 4",null,"BOLL 5","Grupp",null,null,null,null,null,null,null,null,null,null,null,8]
[1,"?",null,null,null,null,null,null,null,null,11,null,1,"?",null,null,null,null,null,null,null,null,16,null,null,"?",null,"?",null,"?",null,"?",null,"?",4,null,null,null,null,null,null,null,null,null,null,null,9]
[2,"?",null,null,null,null,null,null,null,null,12,null,2,"?",null,null,null,null,null,null,null,null,17,null,null,"?",null,"?",null,"?",null,"?",null,"?",3,null,null,null,null,null,null,null,null,null,null,null,10]
[3,"?",null,null,null,null,null,null,null,null,13,null,3,"?",null,null,null,null,null,null,null,null,18,null,null,"?",null,"?",null,"?",null,"?",null,"?",2,null,null,null,null,null,null,null,null,null,null,null,11]
[4,"?",null,null,null,null,null,null,null,null,14,null,4,"?",null,null,null,null,null,null,null,null,19,null,null,"?",null,"?",null,"?",null,"?",null,"?",1,null,null,null,null,null,null,null,null,null,null,null,12]
[5,"?",null,null,null,null,null,null,null,null,15,null,5,"?",null,null,null,null,null,null,null,null,20,null,null,null,null,null,null,null,null,null,null,null,null,null,null,null,null,null,null,null,null,null,null,null,13]
[null,null,null,null,null,null,null,null,null,null,null,null,null,null,null,null,null,null,null,null,null,null,null,null,null,null,null,null,null,null,null,null,null,null,null,null,null,null,null,null,null,null,null,null,null,null,14]